fUSD/lending_fUSD_20260512
["ID","MTS","AMOUNT","RATE_DAILY","PERIOD"]
[422126561,1778592642000,-631.0,0.00025,2]
[422126566,1778592642000,-600.47700498,0.00025,2]
[422126565,1778592642000,-293.81095167,0.00025,2]
[422126568,1778592642000,-151.0,0.00025097,7]
[422126570,1778592642000,-1502.89061056,0.00025106,2]
[422126571,1778592642000,-162.06,0.00025156,30]
[422126507,1778592642000,-591.0,0.00023,2]
[422126567,1778592642000,-1209.29275461,0.00025,2]
[422126555,1778592642000,-162.08,0.00024907,7]
[422126540,1778592642000,-591.0,0.00024,2]
[422126569,1778592642000,-769.95532185,0.000251,2]
[422126541,1778592642000,-1199.0,0.00024,2]
[422126542,1778592642000,-282.12,0.0002411,2]
[422126512,1778592642000,-1301.62,0.00023368,2]
[422126513,1778592642000,-9999.99,0.00023368,2]
[422126517,1778592642000,-299.99,0.00023368,7]
[422126515,1778592642000,-999.99,0.00023368,2]
[422126516,1778592642000,-65055.96,0.00023368,2]
[422126519,1778592642000,-150.99,0.00023368,2]
[422126518,1778592642000,-836.99,0.00023368,2]
[422126520,1778592642000,-9999.99,0.00023368,2]
[422126522,1778592642000,-9999.99,0.00023368,2]
[422126514,1778592642000,-9999.99,0.00023368,2]
[422126524,1778592642000,-27694.4,0.00023368,2]
[422126521,1778592642000,-499.99,0.00023368,2]
[422126526,1778592642000,-777.82453039,0.00023372,2]
[422126508,1778592642000,-1199.0,0.00023,2]
[422126525,1778592642000,-2322.42,0.00023368,2]
[422126523,1778592642000,-24999.99,0.00023368,2]
[422126537,1778592642000,-298.0,0.00024,2]
[422126535,1778592642000,-628.0,0.00024,2]
[422126536,1778592642000,-261.0,0.00024,2]
[422126532,1778592642000,-2428.0,0.00023777,5]
[422126534,1778592642000,-210.0,0.00024,2]
[422126539,1778592642000,-279.0,0.00024,2]
[422126531,1778592642000,-1715.0,0.00023777,5]
[422126529,1778592642000,-166.66,0.00023627,2]
[422126533,1778592642000,-170.0,0.00024,2]
[422126528,1778592642000,-1592.16961224,0.00023392,2]
[422126538,1778592642000,-198.0,0.00024,2]
[422126527,1778592642000,-1220.40438105,0.00023389,2]
[422126530,1778592642000,-2135.0,0.00023777,5]
[422126613,1778592643000,-269.37,0.00026113,2]
[422126612,1778592643000,-4583.51,0.00026113,2]
[422126609,1778592643000,-160.0,0.000261,7]
[422126610,1778592643000,-162.06,0.00026105,7]
[422126604,1778592643000,-4583.51,0.00026084,2]
[422126608,1778592643000,-269.43,0.00026084,2]
[422126605,1778592643000,-269.37,0.00026084,2]
[422126601,1778592643000,-1580.22,0.00026055,7]
[422126606,1778592643000,-1580.22,0.00026084,2]
[422126615,1778592643000,-4583.27,0.00026113,2]
[422126607,1778592643000,-4583.27,0.00026084,2]
[422126611,1778592643000,-162.08,0.00026105,7]
[422126619,1778592643000,-1580.22,0.00026142,7]
[422126623,1778592643000,-269.37,0.00026171,7]
[422126624,1778592643000,-1580.22,0.00026171,7]
[422126616,1778592643000,-269.43,0.00026113,2]
[422126617,1778592643000,-4583.51,0.00026142,7]
[422126620,1778592643000,-4583.27,0.00026142,7]
[422126621,1778592643000,-269.43,0.00026142,7]
[422126622,1778592643000,-4583.51,0.00026171,7]
[422126618,1778592643000,-269.37,0.00026142,7]
[422126626,1778592643000,-269.43,0.00026171,7]
[422126625,1778592643000,-4583.27,0.00026171,7]
[422126630,1778592643000,-269.37,0.000262,2]
[422126627,1778592643000,-162.06,0.00026183,30]
[422126603,1778592643000,-269.43,0.00026055,7]
[422126614,1778592643000,-1580.22,0.00026113,2]
[422126600,1778592643000,-269.37,0.00026055,7]
[422126584,1778592643000,-162.06,0.00026027,2]
[422126595,1778592643000,-2000.0,0.00026044,2]
[422126574,1778592643000,-693.1,0.00025223,7]
[422126573,1778592643000,-185.50872103,0.00025205,2]
[422126572,1778592643000,-162.08,0.00025156,30]
[422126575,1778592643000,-5530.0,0.000253,5]
[422126577,1778592643000,-4160.01402013,0.000255,2]
[422126576,1778592643000,-150.0,0.00025462,2]
[422126579,1778592643000,-31236.71564895,0.0002589,5]
[422126589,1778592643000,-2000.0,0.00026044,2]
[422126586,1778592643000,-4583.27,0.00026027,2]
[422126581,1778592643000,-250.0,0.0002601,2]
[422126582,1778592643000,-4583.51,0.00026027,2]
[422126583,1778592643000,-269.37,0.00026027,2]
[422126602,1778592643000,-4583.27,0.00026055,7]
[422126578,1778592643000,-501.0,0.00025633,3]
[422126580,1778592643000,-5138.94395833,0.00026,30]
[422126587,1778592643000,-269.43,0.00026027,2]
[422126590,1778592643000,-2000.0,0.00026044,2]
[422126588,1778592643000,-162.08,0.00026027,2]
[422126592,1778592643000,-2000.0,0.00026044,2]
[422126591,1778592643000,-2000.0,0.00026044,2]
[422126599,1778592643000,-4583.51,0.00026055,7]
[422126594,1778592643000,-2000.0,0.00026044,2]
[422126598,1778592643000,-2000.0,0.00026044,2]
[422126593,1778592643000,-2000.0,0.00026044,2]
[422126597,1778592643000,-2000.0,0.00026044,2]
[422126596,1778592643000,-2000.0,0.00026044,2]
[422126585,1778592643000,-1580.22,0.00026027,2]
[422126628,1778592643000,-162.08,0.00026183,30]
[422126635,1778592643000,-269.37,0.00026229,7]
[422126631,1778592643000,-1580.22,0.000262,2]
[422126661,1778592643000,-1580.22,0.00026344,7]
[422126663,1778592643000,-269.43,0.00026344,7]
[422126665,1778592643000,-269.37,0.00026373,2]
[422126669,1778592643000,-4583.51,0.00026402,7]
[422126667,1778592643000,-4583.27,0.00026373,2]
[422126668,1778592643000,-269.43,0.00026373,2]
[422126671,1778592643000,-1580.22,0.00026402,7]
[422126666,1778592643000,-1580.22,0.00026373,2]
[422126670,1778592643000,-269.37,0.00026402,7]
[422126673,1778592643000,-269.43,0.00026402,7]
[422126675,1778592643000,-162.08,0.00026418,30]
[422126677,1778592643000,-269.37,0.00026431,2]
[422126664,1778592643000,-4583.51,0.00026373,2]
[422126682,1778592643000,-269.37,0.00026459,2]
[422126684,1778592643000,-4583.27,0.00026459,2]
[422126678,1778592643000,-1580.22,0.00026431,2]
[422126680,1778592643000,-269.43,0.00026431,2]
[422126681,1778592643000,-4583.51,0.00026459,2]
[422126674,1778592643000,-162.06,0.00026418,30]
[422126679,1778592643000,-4583.27,0.00026431,2]
[422126686,1778592643000,-1573.93,0.00026488,7]
[422126685,1778592643000,-269.43,0.00026459,2]
[422126689,1778592643000,-1580.22,0.00026488,7]
[422126687,1778592643000,-4583.51,0.00026488,7]
[422126688,1778592643000,-269.37,0.00026488,7]
[422126629,1778592643000,-4583.51,0.000262,2]
[422126676,1778592643000,-4583.51,0.00026431,2]
[422126672,1778592643000,-4583.27,0.00026402,7]
[422126683,1778592643000,-1580.22,0.00026459,2]
[422126657,1778592643000,-162.06,0.0002634,7]
[422126662,1778592643000,-4583.27,0.00026344,7]
[422126636,1778592643000,-1580.22,0.00026229,7]
[422126633,1778592643000,-269.43,0.000262,2]
[422126634,1778592643000,-4583.51,0.00026229,7]
[422126632,1778592643000,-4583.27,0.000262,2]
[422126649,1778592643000,-4583.27,0.00026286,2]
[422126638,1778592643000,-269.43,0.00026229,7]
[422126648,1778592643000,-1580.22,0.00026286,2]
[422126639,1778592643000,-4583.51,0.00026257,2]
[422126643,1778592643000,-269.43,0.00026257,2]
[422126637,1778592643000,-4583.27,0.00026229,7]
[422126646,1778592643000,-4583.51,0.00026286,2]
[422126645,1778592643000,-162.08,0.00026262,2]
[422126642,1778592643000,-4583.27,0.00026257,2]
[422126640,1778592643000,-269.37,0.00026257,2]
[422126641,1778592643000,-1580.22,0.00026257,2]
[422126658,1778592643000,-162.08,0.0002634,7]
[422126660,1778592643000,-269.37,0.00026344,7]
[422126655,1778592643000,-4583.27,0.00026315,7]
[422126654,1778592643000,-1580.22,0.00026315,7]
[422126659,1778592643000,-4583.51,0.00026344,7]
[422126652,1778592643000,-4583.51,0.00026315,7]
[422126656,1778592643000,-269.43,0.00026315,7]
[422126650,1778592643000,-269.43,0.00026286,2]
[422126653,1778592643000,-269.37,0.00026315,7]
[422126644,1778592643000,-162.06,0.00026262,2]
[422126647,1778592643000,-269.37,0.00026286,2]
[422126651,1778592643000,-151.0,0.00026296,2]
[422126737,1778592644000,-1471.0,0.000274,7]
[422126735,1778592644000,-265.9822,0.00027397,2]
[422126732,1778592644000,-1009.49,0.00027397,2]
[422126733,1778592644000,-300.0,0.00027397,2]
[422126731,1778592644000,-1500.0,0.00027397,2]
[422126730,1778592644000,-330.0,0.00027393,9]
[422126728,1778592644000,-215.0,0.00027343,2]
[422126724,1778592644000,-1058.25,0.000273,2]
[422126727,1778592644000,-150.0,0.00027343,2]
[422126734,1778592644000,-275.33,0.00027397,2]
[422126729,1778592644000,-1058.25,0.00027367,2]
[422126726,1778592644000,-279.0,0.00027343,2]
[422126725,1778592644000,-1058.25,0.00027333,2]
[422126747,1778592644000,-1000.0,0.000278,2]
[422126752,1778592644000,-160.0,0.00028,10]
[422126741,1778592644000,-1058.25,0.00027467,2]
[422126746,1778592644000,-500.0,0.000278,7]
[422126736,1778592644000,-282.44,0.000274,7]
[422126740,1778592644000,-1058.25,0.00027433,2]
[422126743,1778592644000,-401.58,0.000275,2]
[422126738,1778592644000,-2355.37,0.000274,14]
[422126745,1778592644000,-1502.89061056,0.00027664,2]
[422126742,1778592644000,-1058.25,0.000275,2]
[422126744,1778592644000,-597.09,0.00027655,7]
[422126750,1778592644000,-3535.4846062,0.00028,60]
[422126748,1778592644000,-691.0,0.000278,2]
[422126751,1778592644000,-208.2157166,0.00028,10]
[422126723,1778592644000,-1471.0,0.000271,7]
[422126739,1778592644000,-1058.25,0.000274,2]
[422126718,1778592644000,-154.97,0.00026782,2]
[422126695,1778592644000,-4583.51,0.00026517,7]
[422126720,1778592644000,-150.0,0.00026849,2]
[422126694,1778592644000,-1573.93,0.00026517,7]
[422126753,1778592644000,-640.06,0.00028,7]
[422126696,1778592644000,-269.37,0.00026517,7]
[422126692,1778592644000,-162.06,0.00026497,2]
[422126690,1778592644000,-4583.27,0.00026488,7]
[422126691,1778592644000,-269.43,0.00026488,7]
[422126693,1778592644000,-162.08,0.00026497,2]
[422126697,1778592644000,-1580.22,0.00026517,7]
[422126699,1778592644000,-269.43,0.00026517,7]
[422126708,1778592644000,-4583.15,0.00026575,7]
[422126709,1778592644000,-1574.03,0.00026575,7]
[422126703,1778592644000,-269.37,0.00026546,2]
[422126700,1778592644000,-1573.93,0.00026546,2]
[422126701,1778592644000,-4583.51,0.00026546,2]
[422126698,1778592644000,-4583.27,0.00026517,7]
[422126704,1778592644000,-1580.22,0.00026546,2]
[422126706,1778592644000,-269.43,0.00026546,2]
[422126707,1778592644000,-152.59543025,0.00026558,2]
[422126705,1778592644000,-4583.27,0.00026546,2]
[422126711,1778592644000,-269.46,0.00026575,7]
[422126713,1778592644000,-1580.35,0.00026575,7]
[422126722,1778592644000,-1220.40438105,0.0002698,2]
[422126712,1778592644000,-162.06,0.00026575,7]
[422126714,1778592644000,-4583.34,0.00026575,7]
[422126710,1778592644000,-4583.51,0.00026575,7]
[422126721,1778592644000,-501.0,0.00026868,4]
[422126715,1778592644000,-269.47,0.00026575,7]
[422126719,1778592644000,-615.55,0.00026849,7]
[422126717,1778592644000,-640.06,0.000266,7]
[422126716,1778592644000,-162.1,0.00026575,7]
[422126749,1778592644000,-1028.19236,0.00027944,2]
[422126769,1778592644000,-298.21801564,0.00029452,30]
[422126760,1778592644000,-3461.81793877,0.00029,4]
[422126789,1778592644000,-49163.9774577,0.00030089,2]
[422126788,1778592644000,-27872.6131959,0.00030089,2]
[422126797,1778592644000,-912.0619197,0.00030137,2]
[422126799,1778592644000,-151.0,0.00030239,2]
[422126794,1778592644000,-20072.65524883,0.0003013,7]
[422126792,1778592644000,-14055.96881562,0.0003013,2]
[422126786,1778592644000,-725.3341788,0.00030089,2]
[422126790,1778592644000,-1586.7265767,0.00030089,2]
[422126795,1778592644000,-275.33,0.00030137,2]
[422126796,1778592644000,-5006.29278813,0.00030137,120]
[422126759,1778592644000,-241.3327726,0.00028857,2]
[422126800,1778592644000,-2355.37,0.000303,14]
[422126802,1778592644000,-501.0,0.00030575,8]
[422126803,1778592644000,-1273.818,0.00030576,2]
[422126804,1778592644000,-1228.222,0.00030576,2]
[422126805,1778592644000,-3513.0,0.00030576,2]
[422126807,1778592644000,-198.0,0.00030668,30]
[422126811,1778592644000,-1199.0,0.00030668,30]
[422126808,1778592644000,-154.0,0.00030668,30]
[422126806,1778592644000,-1353.0,0.00030576,2]
[422126801,1778592644000,-1220.40438105,0.0003057,2]
[422126810,1778592644000,-591.0,0.00030668,30]
[422126809,1778592644000,-279.0,0.00030668,30]
[422126812,1778592644000,-210.0,0.00030706,30]
[422126814,1778592644000,-261.0,0.00030721,30]
[422126815,1778592644000,-298.0,0.00030721,30]
[422126816,1778592644000,-155.0,0.00030721,30]
[422126813,1778592644000,-628.0,0.00030721,30]
[422126817,1778592644000,-282.44,0.000308,7]
[422126793,1778592644000,-204.6957508,0.0003013,2]
[422126798,1778592644000,-1502.89061056,0.00030223,2]
[422126791,1778592644000,-152.0,0.00030107,3]
[422126784,1778592644000,-640.06,0.0003,7]
[422126756,1778592644000,-150.0,0.00028192,2]
[422126754,1778592644000,-501.0,0.00028104,5]
[422126787,1778592644000,-63403.9363589,0.00030089,2]
[422126755,1778592644000,-2925.0,0.00028166,2]
[422126758,1778592644000,-693.1,0.00028445,7]
[422126772,1778592644000,-2000.0,0.00029589,2]
[422126762,1778592644000,-1494.184881,0.00029,2]
[422126773,1778592644000,-2000.0,0.00029589,2]
[422126766,1778592644000,-1720.0,0.00029445,2]
[422126761,1778592644000,-32816.43151512,0.00029,7]
[422126764,1778592644000,-362.0,0.00029284,2]
[422126763,1778592644000,-2355.37,0.00029,14]
[422126765,1778592644000,-501.0,0.0002934,7]
[422126768,1778592644000,-155.37722431,0.00029449,46]
[422126757,1778592644000,-151.0,0.00028267,2]
[422126767,1778592644000,-228.76318988,0.00029445,2]
[422126783,1778592644000,-87877.0,0.0003,2]
[422126780,1778592644000,-2000.0,0.00029589,2]
[422126776,1778592644000,-2000.0,0.00029589,2]
[422126779,1778592644000,-2000.0,0.00029589,2]
[422126777,1778592644000,-2000.0,0.00029589,2]
[422126775,1778592644000,-2000.0,0.00029589,2]
[422126782,1778592644000,-14997.0,0.0003,2]
[422126785,1778592644000,-251.0,0.00030078,2]
[422126781,1778592644000,-150.0,0.00029601,2]
[422126774,1778592644000,-2000.0,0.00029589,2]
[422126771,1778592644000,-2000.0,0.00029589,2]
[422126778,1778592644000,-2000.0,0.00029589,2]
[422126770,1778592644000,-214.98328015,0.00029516,46]
[422126835,1778592645000,-693.1,0.00031668,7]
[422126834,1778592645000,-1000.0,0.000315,7]
[422126833,1778592645000,-150.0,0.00031488,7]
[422126837,1778592645000,-154.0,0.00031668,30]
[422126838,1778592645000,-279.0,0.00031668,30]
[422126842,1778592645000,-210.0,0.00031706,30]
[422126839,1778592645000,-591.0,0.00031668,30]
[422126841,1778592645000,-2355.37,0.000317,14]
[422126840,1778592645000,-1199.0,0.00031668,30]
[422126832,1778592645000,-150.0,0.00031488,7]
[422126836,1778592645000,-198.0,0.00031668,30]
[422126831,1778592645000,-150.0,0.00031488,7]
[422126822,1778592645000,-188.43680951,0.00031,2]
[422126829,1778592645000,-150.0,0.00031488,7]
[422126828,1778592645000,-150.0,0.00031488,7]
[422126830,1778592645000,-150.0,0.00031488,7]
[422126827,1778592645000,-150.0,0.00031488,7]
[422126821,1778592645000,-188.43680951,0.00031,2]
[422126843,1778592645000,-517.0,0.0003172,30]
[422126823,1778592645000,-150.0,0.00031081,2]
[422126818,1778592645000,-160.0,0.00031,30]
[422126820,1778592645000,-203.93321598,0.00031,2]
[422126824,1778592645000,-154.97,0.0003122,120]
[422126825,1778592645000,-330.0,0.00031384,19]
[422126826,1778592645000,-640.06,0.000314,7]
[422126845,1778592645000,-261.0,0.00031721,30]
[422126819,1778592645000,-188.43680953,0.00031,2]
[422126855,1778592645000,-198.0,0.00032668,30]
[422126870,1778592645000,-176.85198724,0.000329,2]
[422126872,1778592645000,-368361.97828683,0.00033,60]
[422126871,1778592645000,-761.45951112,0.000329,2]
[422126868,1778592645000,-160.56804544,0.00032877,60]
[422126869,1778592645000,-150.37627282,0.000329,2]
[422126863,1778592645000,-261.0,0.00032721,30]
[422126865,1778592645000,-155.0,0.00032721,30]
[422126862,1778592645000,-628.0,0.00032721,30]
[422126866,1778592645000,-1502.89061056,0.00032782,2]
[422126864,1778592645000,-298.0,0.00032721,30]
[422126861,1778592645000,-210.0,0.00032706,30]
[422126867,1778592645000,-275.33,0.00032877,2]
[422126860,1778592645000,-282.44,0.000327,7]
[422126847,1778592645000,-155.0,0.00031721,30]
[422126859,1778592645000,-1199.0,0.00032668,30]
[422126846,1778592645000,-298.0,0.00031721,30]
[422126853,1778592645000,-151.0,0.0003221,5]
[422126854,1778592645000,-150.0,0.00032636,2]
[422126844,1778592645000,-628.0,0.00031721,30]
[422126849,1778592645000,-161.5894468,0.00032,120]
[422126857,1778592645000,-279.0,0.00032668,30]
[422126848,1778592645000,-501.0,0.00031811,9]
[422126852,1778592645000,-762.0,0.0003205,30]
[422126851,1778592645000,-565.0,0.0003205,30]
[422126856,1778592645000,-154.0,0.00032668,30]
[422126858,1778592645000,-591.0,0.00032668,30]
[422126850,1778592645000,-208.16996645,0.00032,120]
[422126880,1778592646000,-1599.91,0.00026084,2]
[422126881,1778592646000,-1599.91,0.00026113,2]
[422126882,1778592646000,-988.2953859,0.00026142,7]
[422126877,1778592646000,-150.0,0.00024411,2]
[422126875,1778592646000,-6119.32397714,0.0001487,2]
[422126878,1778592646000,-1599.91,0.00026027,2]
[422126885,1778592646000,-1599.91,0.000262,2]
[422126883,1778592646000,-611.6146141,0.00026142,7]
[422126876,1778592646000,-838.0,0.00021,2]
[422126874,1778592646000,-1133.48610485,0.0001487,2]
[422126879,1778592646000,-1599.91,0.00026055,7]
[422126886,1778592646000,-1599.91,0.00026229,7]
[422126889,1778592646000,-1599.91,0.00026315,7]
[422126897,1778592646000,-4583.2,0.00026027,2]
[422126900,1778592646000,-1099.56020473,0.00033,60]
[422126884,1778592646000,-1599.91,0.00026171,7]
[422126899,1778592646000,-1599.91,0.00026373,2]
[422126898,1778592646000,-1599.91,0.00026344,7]
[422126896,1778592646000,-4392.29027278,0.00018637,2]
[422126895,1778592646000,-2860.51980917,0.00018637,2]
[422126888,1778592646000,-1599.91,0.00026286,2]
[422126892,1778592646000,-381.0,0.000329,30]
[422126893,1778592646000,-282.0,0.000329,30]
[422126891,1778592646000,-474.0,0.0003205,30]
[422126890,1778592646000,-504.068,0.00028859,2]
[422126887,1778592646000,-1599.91,0.00026257,2]
[422126894,1778592646000,-3168.40259091,0.00033,60]
[422126937,1778592699000,-500.0,0.00014969,2]
[422126943,1778592963000,-500.0,0.00014969,2]
[422126945,1778592963000,-214.86625456,0.00014999,2]
[422126946,1778592963000,-116.8534517,0.00014999,2]
[422126944,1778592963000,-160.0,0.00014999,2]
[422126942,1778592963000,-500.0,0.00014969,2]
[422126940,1778592963000,-508.28029374,0.00014969,2]
[422126941,1778592963000,-500.0,0.00014969,2]
[422126949,1778592999000,-500.0,0.00014969,2]
[422126948,1778592999000,-500.0,0.00014969,2]
[422126951,1778593132000,-500.0,0.00014969,2]
[422126950,1778593132000,-500.0,0.00014969,2]
[422126952,1778593232000,-500.0,0.00014969,2]
[422126955,1778593314000,-500.0,0.00014969,2]
[422126956,1778593402000,-359.42643492,0.00014969,2]
[422126960,1778593432000,-151.0,0.0002,2]
[422126961,1778593447000,-278.86442994,0.000191,4]
[422126962,1778593463000,-2500.0,0.0001955,2]
[422126965,1778593831000,-1200.0,0.00019999,2]
[422126966,1778593831000,-300.0,0.00019999,2]
[422126968,1778593831000,-224.91795545,0.0002,2]
[422126970,1778593831000,-163.0,0.0002,2]
[422126969,1778593831000,-151.0,0.0002,2]
[422126971,1778593831000,-153.0,0.0002,2]
[422126967,1778593831000,-120.08204455,0.0002,2]
[422126974,1778593832000,-4.08204455,0.0002,2]
[422126973,1778593832000,-659.0,0.0002,2]
[422126972,1778593832000,-325.0,0.0002,2]
[422127008,1778593838000,-15999.9021646,0.00022861,2]
[422127007,1778593838000,-150.0,0.00022859,2]
[422127005,1778593838000,-170.19,0.00022451,30]
[422127009,1778593838000,-500.0,0.00022946,2]
[422127010,1778593838000,-5000.0,0.00022986,2]
[422127006,1778593838000,-452.0,0.00022561,2]
[422127011,1778593838000,-345.0,0.00023,2]
[422127022,1778593838000,-1028.1923601,0.00023394,2]
[422127012,1778593838000,-151.0,0.00023,2]
[422127013,1778593838000,-163.0,0.00023,2]
[422127021,1778593838000,-9999.99,0.00023368,2]
[422127017,1778593838000,-1684.86,0.00023368,2]
[422127015,1778593838000,-325.0,0.00023,2]
[422127016,1778593838000,-659.0,0.00023,2]
[422127019,1778593838000,-4737.76,0.00023368,2]
[422127020,1778593838000,-150.99,0.00023368,2]
[422127018,1778593838000,-999.99,0.00023368,2]
[422127024,1778593838000,-1197.13,0.00023614,2]
[422127023,1778593838000,-154.97,0.00023578,2]
[422127028,1778593838000,-587.0,0.00023712,2]
[422127014,1778593838000,-153.0,0.00023,2]
[422127002,1778593838000,-659.0,0.00022,2]
[422127000,1778593838000,-253.67585803,0.00022,2]
[422127004,1778593838000,-352.67727803,0.00022,2]
[422126981,1778593838000,-252.535585,0.0002,2]
[422126982,1778593838000,-135.71235737,0.00020017,2]
[422126980,1778593838000,-245.91795545,0.0002,2]
[422126983,1778593838000,-79.15389719,0.00020017,2]
[422126984,1778593838000,-345.0,0.00021,2]
[422126985,1778593838000,-151.0,0.00021,2]
[422126986,1778593838000,-163.0,0.00021,2]
[422126987,1778593838000,-153.0,0.00021,2]
[422126989,1778593838000,-659.0,0.00021,2]
[422126999,1778593838000,-71.32414197,0.00022,2]
[422126988,1778593838000,-325.0,0.00021,2]
[422126992,1778593838000,-898.12292909,0.00021881,2]
[422126990,1778593838000,-28.24880822,0.00021777,2]
[422126991,1778593838000,-391.75119178,0.00021777,2]
[422126993,1778593838000,-548.87707091,0.00021881,2]
[422127032,1778593838000,-163.0,0.00024,2]
[422126998,1778593838000,-153.0,0.00022,2]
[422126994,1778593838000,-250.0,0.00021999,2]
[422126997,1778593838000,-163.0,0.00022,2]
[422126995,1778593838000,-345.0,0.00022,2]
[422127001,1778593838000,-1510.04,0.00022,2]
[422127003,1778593838000,-300.0,0.00022,2]
[422126996,1778593838000,-151.0,0.00022,2]
[422127031,1778593838000,-153.0,0.00024,2]
[422127030,1778593838000,-345.0,0.00024,2]
[422127060,1778593838000,-342.97720224,0.00024945,2]
[422127050,1778593838000,-2500.0,0.00024846,2]
[422127055,1778593838000,-343.40540024,0.00024945,2]
[422127048,1778593838000,-200.0,0.00024735,2]
[422127029,1778593838000,-3692.6993593,0.00023878,2]
[422127053,1778593838000,-5797.17253767,0.000249,2]
[422127070,1778593838000,-500.0,0.00024945,2]
[422127071,1778593838000,-500.0,0.00024945,2]
[422127072,1778593838000,-500.0,0.00024945,2]
[422127049,1778593838000,-170.19,0.00024814,30]
[422127073,1778593838000,-545.82334747,0.00024945,2]
[422127063,1778593838000,-500.0,0.00024945,2]
[422127062,1778593838000,-500.0,0.00024945,2]
[422127064,1778593838000,-500.0,0.00024945,2]
[422127068,1778593838000,-500.0,0.00024945,2]
[422127065,1778593838000,-500.0,0.00024945,2]
[422127066,1778593838000,-500.0,0.00024945,2]
[422127069,1778593838000,-500.0,0.00024945,2]
[422127067,1778593838000,-199.28539952,0.00024945,2]
[422127074,1778593838000,-500.0,0.00024945,2]
[422127061,1778593838000,-500.0,0.00024945,2]
[422127058,1778593838000,-500.0,0.00024945,2]
[422127051,1778593838000,-157.19,0.00024886,7]
[422127052,1778593838000,-150.52793818,0.000249,2]
[422127025,1778593838000,-150.0,0.00023647,2]
[422127026,1778593838000,-150.0,0.00023647,2]
[422127027,1778593838000,-292.40813059,0.00023647,2]
[422127056,1778593838000,-500.0,0.00024945,2]
[422127047,1778593838000,-500.0,0.00024712,2]
[422127034,1778593838000,-325.0,0.00024,2]
[422127036,1778593838000,-502.0,0.00024397,2]
[422127046,1778593838000,-40519.966083,0.00024688,2]
[422127035,1778593838000,-659.0,0.00024,2]
[422127040,1778593838000,-275.33,0.00024658,2]
[422127033,1778593838000,-153.0,0.00024,2]
[422127045,1778593838000,-532.7355213,0.00024688,2]
[422127042,1778593838000,-157.19,0.00024658,2]
[422127043,1778593838000,-219.79,0.00024658,2]
[422127037,1778593838000,-4166.5479,0.00024588,2]
[422127041,1778593838000,-1000.0,0.00024658,2]
[422127038,1778593838000,-88084.1606,0.00024588,2]
[422127044,1778593838000,-219.96,0.00024658,2]
[422127057,1778593838000,-500.0,0.00024945,2]
[422127059,1778593838000,-500.0,0.00024945,2]
[422127054,1778593838000,-202.32178757,0.00024945,2]
[422127039,1778593838000,-6798.0986,0.00024588,2]
[422127077,1778593839000,-5459.1432332,0.00024946,2]
[422127078,1778593839000,-906.56824085,0.00024946,2]
[422127075,1778593839000,-198078.0056559,0.00024946,2]
[422127076,1778593839000,-59816.88574059,0.00024946,2]
[422127089,1778593843000,-84658.00423586,0.00024946,2]
[422127088,1778593843000,-39195.65685154,0.00024946,2]
[422127093,1778593846000,-504.0,0.00024946,2]
[422127103,1778593862000,749.0,0.00027397,120]